bitfinex/quotes_SOLUSD_20251120
["timestamp","ask_amount","ask_price","bid_price","bid_amount"]
[1763641573936,18.12096,141.93,141.92,0.2]
[1763641574124,19.80096,141.93,141.92,0.2]
[1763641574633,20.47096,141.93,141.92,0.2]
[1763641575240,27.51668676,141.93,141.92,0.2]
[1763641575437,30.18493913,141.93,141.92,0.2]
[1763641577948,39.97376682,141.93,141.92,0.2]
[1763641580133,30.18493913,141.93,141.92,0.2]
[1763641582027,29.51493913,141.93,141.92,0.2]
[1763641582536,9.71365675,141.94,141.92,0.2]
[1763641582735,1.68,141.94,141.92,0.91]
[1763641583229,1.68,141.94,141.93,0.71]
[1763641585349,1.68,141.94,141.92,0.2]
[1763641585350,12.10348274,141.94,141.92,0.2]
[1763641586956,12.10348274,141.94,141.92,0.91]
[1763641586957,1.68,141.94,141.92,0.91]
[1763641587264,19.80096,141.94,141.92,0.91]
[1763641587427,26.84625738,141.94,141.92,0.91]
[1763641588249,26.84625738,141.94,141.92,0.2]
[1763641588250,29.51450975,141.94,141.92,0.2]
[1763641588956,30.17450975,141.94,141.92,0.2]
[1763641589643,3.32825237,141.93,141.92,0.2]
[1763641589827,31.23804006,141.93,141.92,0.2]
[1763641590727,13.11708006,141.93,141.92,0.2]
[1763641591440,20.16280682,141.93,141.92,0.2]
[1763641594261,19.50280682,141.93,141.92,0.2]
[1763641594442,9.71397913,141.93,141.92,0.2]
[1763641594643,10.37397913,141.93,141.92,0.2]
[1763641594847,11.88536547,141.93,141.92,0.2]
[1763641595230,13.56536547,141.93,141.92,0.2]
[1763641596048,12.90536547,141.93,141.92,0.2]
[1763641596463,31.02632547,141.93,141.92,0.2]
[1763641596973,1.68,141.93,141.92,0.89]
[1763641597693,5.85963871,141.93,141.92,0.2]
[1763641597980,1.68,141.93,141.92,0.2]
[1763641598472,8.72572676,141.93,141.92,0.2]
[1763641598974,8.72572676,141.93,141.92,0.89]
[1763641599586,8.72572676,141.93,141.92,0.2]
[1763641599783,12.90536547,141.93,141.92,0.2]
[1763641601376,18.12096,141.94,141.92,0.89]
[1763641601676,19.80096,141.94,141.92,0.89]
[1763641601859,1.68,141.94,141.93,0.69]
[1763641603478,4.17963871,141.99,141.93,4.86963871]
[1763641603780,23.98059871,141.99,141.94,4.86963871]
[1763641604156,23.98059871,141.99,141.95,0.69]
[1763641604552,1.68,141.99,141.93,4.17963871]
[1763641604751,11.22288423,141.98,141.96,0.69]
[1763641604972,7.04324552,141.98,141.96,0.69]
[1763641605458,11.22288423,141.98,141.94,4.86963871]
[1763641605655,4.17963871,141.97,141.95,0.69]
[1763641605854,4.17963871,141.97,141.92,0.89]
[1763641605855,23.98059871,141.96,141.92,0.89]
[1763641606055,23.98059871,141.96,141.93,0.69]
[1763641606496,23.98059871,141.96,141.92,0.2]
[1763641606497,22.30059871,141.95,141.92,0.2]
[1763641606657,29.34580473,141.95,141.93,0.69]
[1763641608190,46.95763988,141.95,141.92,0.2]
[1763641608357,4.17963871,141.93,141.92,0.2]
[1763641608558,23.98059871,141.93,141.92,0.2]
[1763641608957,31.02632547,141.93,141.92,0.2]
[1763641610994,31.74632547,141.93,141.92,0.2]
[1763641613583,31.02632547,141.93,141.92,0.2]
[1763641616681,19.80096,141.93,141.92,0.9]
[1763641617986,26.84668676,141.93,141.92,0.9]
[1763641618682,19.80096,141.93,141.92,0.9]
[1763641619066,25.16668676,141.93,141.92,0.9]
[1763641619270,26.84668676,141.93,141.92,0.9]
[1763641619882,1.68,141.93,141.92,0.9]
[1763641621162,1.68,141.93,141.92,6.1747258]
[1763641622777,7.04551374,141.94,141.92,6.1747258]
[1763641622975,1.68,141.93,141.92,0.2]
[1763641623172,1.68,141.93,141.92,5.47423819]
[1763641623483,1.68,141.93,141.92,17.40010012]
[1763641623993,1.68,141.96,141.92,17.40010012]
[1763641624179,1.68,141.96,141.94,4.17963871]
[1763641624683,1.68,141.96,141.95,0.7]
[1763641628790,8.72423781,141.96,141.95,0.7]
[1763641629089,1.68,141.96,141.95,0.7]
[1763641629878,1.68,141.96,141.95,5.96863236]
[1763641630078,1.68,141.96,141.95,0.7]
[1763641633103,8.72423781,141.96,141.95,0.7]
[1763641634121,1.68,141.96,141.95,0.7]
[1763641635322,13.62387652,141.96,141.92,0.9]
[1763641635523,4.17963871,141.95,141.92,0.9]
[1763641635817,1.68,141.94,141.92,0.9]
[1763641636190,5.85963871,141.94,141.92,0.9]
[1763641636389,5.85963871,141.94,141.92,0.2]
[1763641636390,1.68,141.94,141.92,0.2]
[1763641636607,4.17963871,141.93,141.92,0.2]
[1763641637215,11.22536547,141.93,141.92,0.2]
[1763641638095,11.94536547,141.93,141.92,0.2]
[1763641639790,21.73419316,141.93,141.92,0.2]
[1763641641507,39.85515316,141.93,141.92,0.2]
[1763641642227,26.84668676,141.93,141.92,0.2]
[1763641642418,31.02632547,141.93,141.92,0.2]
[1763641643015,26.84668676,141.93,141.92,0.2]
[1763641643322,7.04506188,141.95,141.92,5.08963871]
[1763641643499,1.68,141.94,141.92,5.08963871]
[1763641643699,1.68,141.94,141.93,4.88963871]
[1763641644127,1.68,141.96,141.93,4.88963871]
[1763641644300,19.80096,141.96,141.94,4.88963871]
[1763641644626,1.68,141.96,141.95,0.71]
[1763641645319,1.68,141.96,141.95,4.88963871]
[1763641646422,1.68,141.96,141.95,11.93437277]
[1763641647026,1.68,141.98,141.95,11.93437277]
[1763641647206,1.68,141.98,141.96,0.71]
[1763641647724,8.72326793,141.98,141.96,0.71]
[1763641648920,1.68,141.97,141.96,0.71]
[1763641649937,8.72374163,141.97,141.94,0.71]
[1763641650106,8.72374163,141.97,141.95,0.71]
[1763641650302,1.68,141.97,141.95,0.71]
[1763641650822,1.68,141.97,141.95,4.88963871]
[1763641651022,1.68,141.97,141.96,0.66]
[1763641652027,1.68,141.97,141.96,7.70423781]
[1763641652236,18.12096,141.99,141.96,11.88387652]
[1763641652410,1.68,141.98,141.97,0.66]
[1763641652721,1.68,142.0,141.97,4.83963871]
[1763641652906,1.68,142.0,141.98,4.17963871]
[1763641653110,1.68,142.0,141.98,4.83963871]
[1763641653310,1.68,142.0,141.99,0.66]
[1763641653507,1.68,142.0,141.94,7.04487671]
[1763641653700,6.52963871,142.0,141.96,4.17963871]
[1763641653904,4.17963871,141.99,141.96,0.66]
[1763641654132,11.22262817,141.99,141.96,0.66]
[1763641654403,4.17963871,141.98,141.95,0.66]
[1763641654599,1.68,141.97,141.95,0.66]
[1763641655827,1.68,141.97,141.95,3.33245507]
[1763641656368,1.68,141.97,141.96,3.33245507]
[1763641656555,1.68,141.99,141.96,3.33245507]
[1763641656853,1.68,141.99,141.97,3.33245507]
[1763641657026,1.68,141.99,141.98,0.66]
[1763641657230,2.67245507,142.02,141.98,3.33245507]
[1763641657426,0.67,142.07,142.01,2.67245507]
[1763641657634,2.67245507,142.08,142.03,2.67245507]
[1763641657830,1.68,142.06,142.03,2.67245507]
[1763641658043,1.68,142.06,142.04,0.66]
[1763641658947,8.71928616,142.06,142.04,0.66]
[1763641659141,1.68,142.06,142.04,0.66]
[1763641660564,1.68,142.06,142.04,3.33245507]
[1763641660858,1.68,142.06,142.04,10.37271602]
[1763641661053,1.68,142.06,142.05,0.66]
[1763641661358,1.68,142.06,141.99,17.60655881]
[1763641661536,8.71936844,142.06,142.03,3.33245507]
[1763641661949,0.67,142.05,142.01,2.67245507]
[1763641662255,0.67,142.04,141.98,7.04324008]
[1763641662479,4.35245507,142.03,141.99,3.33245507]
[1763641662833,0.67,142.02,141.98,3.33245507]
[1763641663344,23.14341507,142.03,141.99,0.66]
[1763641663731,22.47341507,142.03,141.99,3.33245507]
[1763641664253,7.04126179,142.02,141.99,2.67245507]
[1763641664456,7.04126179,142.02,141.99,3.33245507]
[1763641665538,9.71371686,142.02,141.99,0.66]
[1763641666266,0.67,142.01,141.96,0.66]
[1763641666466,0.67,142.01,141.96,3.33245507]
[1763641666467,4.35245507,142.0,141.96,3.33245507]
[1763641666839,4.35245507,142.0,141.97,0.66]
[1763641667041,1.68,142.0,141.97,0.66]
[1763641667544,8.72245995,142.0,141.97,0.66]
[1763641667746,1.68,142.0,141.97,3.33245507]
[1763641667945,8.72234758,142.0,141.97,3.33245507]
[1763641668267,1.68,142.0,141.97,2.67245507]
[1763641668469,1.68,142.0,141.98,0.66]
[1763641669266,8.72233357,142.0,141.98,0.66]
[1763641669564,8.72233357,142.0,141.97,3.33245507]
[1763641669943,8.72233357,142.0,141.98,0.66]
[1763641670473,1.68,142.0,141.98,3.33245507]
[1763641670971,1.68,142.0,141.99,0.67]
[1763641671953,8.72227306,142.0,141.98,0.67]
[1763641673173,1.68,142.0,141.98,0.67]
[1763641673766,0.69,141.99,141.95,0.67]
[1763641674063,9.41229223,142.0,141.96,0.67]
[1763641674256,12.0847473,142.0,141.96,0.67]
[1763641674583,2.67245507,141.99,141.96,0.67]
[1763641674975,3.36245507,141.99,141.94,10.38754246]
[1763641675160,3.36245507,141.99,141.95,0.67]
[1763641675480,2.67245507,141.98,141.92,0.2]
[1763641675779,8.72398518,141.97,141.93,10.38818141]
[1763641676159,8.72398518,141.97,141.94,0.67]
[1763641676576,1.68,141.97,141.94,0.67]
[1763641676779,11.39621356,141.97,141.94,0.67]
[1763641677281,8.72375849,141.97,141.94,0.67]
[1763641677989,1.68,141.97,141.94,0.67]
[1763641678194,1.68,141.97,141.94,10.38759811]
[1763641678484,1.68,141.97,141.94,3.34245507]
[1763641678693,1.68,141.97,141.95,0.67]
[1763641680193,1.68,141.97,141.95,10.38707623]
[1763641680367,25.16342108,142.0,141.96,2.67245507]
[1763641680568,26.84342108,142.0,141.97,0.67]
[1763641680762,19.80096,142.0,141.97,3.34245507]
[1763641681191,26.84325037,142.0,141.98,0.67]
[1763641681564,26.84325037,142.0,141.97,0.67]
[1763641682990,19.80096,142.0,141.97,0.67]
[1763641683179,1.68,142.0,141.98,2.67245507]
[1763641683484,1.68,142.0,141.99,2.67245507]
[1763641683882,1.68,142.0,141.99,0.67]
[1763641688375,8.72225352,142.0,141.98,2.67245507]
[1763641688574,1.68,142.0,141.99,3.34245507]
[1763641689087,1.68,142.0,141.99,0.67]
[1763641689712,1.68,142.0,141.99,3.34245507]
[1763641690406,20.96363324,142.04,141.99,10.38520455]
[1763641690407,7.04077382,142.03,141.99,10.38520455]
[1763641690566,1.68,142.02,142.0,3.34245507]
[1763641690766,1.68,142.02,142.01,0.67]
[1763641690984,1.68,142.02,142.01,3.34245507]
[1763641691675,8.72062131,142.04,142.01,3.34245507]
[1763641691876,8.72062131,142.04,142.02,0.67]
[1763641692601,8.72062131,142.04,142.01,2.67245507]
[1763641692778,8.72062131,142.04,142.01,3.34245507]
[1763641693776,8.72062131,142.04,142.02,0.67]
[1763641697320,8.72062131,142.04,142.02,3.34245507]
[1763641697321,1.68,142.04,142.02,3.34245507]
[1763641697686,1.68,142.04,142.03,0.67]
[1763641697887,1.68,142.04,142.02,2.67245507]
[1763641698088,1.68,142.04,142.02,0.67]
[1763641699303,8.72038799,142.04,142.02,0.67]
[1763641701109,8.72038799,142.04,142.01,2.67245507]
[1763641701305,8.72038799,142.04,142.01,3.33245507]
[1763641701811,8.72038799,142.04,142.02,0.66]
[1763641702317,1.66,142.06,142.03,2.67245507]
[1763641702493,1.66,142.06,142.04,3.33245507]
[1763641703002,1.66,142.06,142.04,2.67245507]
[1763641703212,1.66,142.06,142.05,0.66]
[1763641705915,3.37245507,142.05,142.01,2.67245507]
[1763641706109,2.67245507,142.02,141.98,0.66]
[1763641706412,22.45341507,142.01,141.96,2.67245507]
[1763641706623,1.66,142.0,141.96,3.33245507]
[1763641706921,1.66,142.0,141.97,0.66]
[1763641707810,1.66,142.0,141.97,3.33245507]
[1763641708188,8.70232186,142.0,141.97,3.33245507]
[1763641710622,8.70232186,142.0,141.97,0.66]
[1763641710899,8.70232186,142.0,141.96,2.67245507]
[1763641710900,0.66,141.99,141.96,2.67245507]
[1763641711314,12.03477693,142.0,141.96,3.35245507]
[1763641711519,7.04324552,141.98,141.96,0.68]
[1763641711826,1.66,141.97,141.94,0.68]
[1763641712020,4.99245507,141.97,141.93,2.67245507]
[1763641712221,4.99245507,141.97,141.93,3.35245507]
[1763641713035,2.32,141.97,141.93,3.35245507]
[1763641714529,7.04423781,141.96,141.93,3.35245507]
[1763641714730,8.70393561,141.97,141.94,0.68]
[1763641716733,0.66,141.96,141.92,4.37604082]
[1763641716936,1.66,141.95,141.92,5.05604082]
[1763641717317,1.66,141.95,141.92,0.88]
[1763641717632,1.66,141.95,141.92,0.2]
[1763641717633,2.32,141.95,141.92,0.2]
[1763641717838,2.32,141.95,141.92,0.88]
[1763641718207,5.83604082,141.95,141.92,0.2]
[1763641718416,22.95700082,141.94,141.92,0.2]
[1763641718608,30.002569,141.94,141.92,0.2]
[1763641719435,18.12096,141.94,141.92,0.88]
[1763641719605,1.68,141.94,141.92,5.05604082]
[1763641719809,1.68,141.94,141.93,0.68]
[1763641720748,18.12096,141.96,141.93,4.85604082]
[1763641720925,1.68,141.94,141.93,4.85604082]
[1763641721111,1.68,141.94,141.93,4.17604082]
[1763641721529,1.68,141.94,141.93,4.85604082]
[1763641722241,1.68,141.95,141.93,11.90176758]
[1763641722531,1.68,141.95,141.94,0.68]
[1763641726828,1.68,141.95,141.92,11.42209325]
[1763641727128,1.68,141.95,141.93,0.68]
[1763641727734,8.72476144,141.95,141.92,4.37604082]
[1763641727939,8.72476144,141.95,141.92,5.05604082]
[1763641728433,1.68,141.95,141.92,5.05604082]
[1763641729237,1.68,141.95,141.92,12.10224918]
[1763641730514,1.68,141.95,141.92,5.05604082]
[1763641730717,8.72479315,141.95,141.92,5.05604082]
[1763641732034,1.68,141.95,141.92,11.42226299]
[1763641732240,1.68,141.95,141.93,0.69]
[1763641732426,1.68,141.95,141.92,12.11226299]
[1763641733312,8.72479084,141.95,141.93,0.69]
[1763641733547,8.72479084,141.95,141.92,5.06604082]
[1763641734550,13.58083166,141.95,141.92,0.2]
[1763641735743,13.58083166,141.95,141.92,0.89]
[1763641736327,13.58083166,141.95,141.92,0.2]
[1763641736734,4.17604082,141.93,141.92,0.2]
[1763641737134,4.85604082,141.93,141.92,0.2]
[1763641737623,6.53604082,141.93,141.92,0.2]
[1763641738549,1.68,141.93,141.92,0.89]
[1763641739124,1.68,141.93,141.92,0.2]
[1763641739338,7.04552592,141.94,141.92,0.2]
[1763641739647,1.68,141.93,141.92,0.2]
[1763641740447,1.68,141.93,141.92,0.89]
[1763641740750,1.68,141.93,141.92,0.2]
[1763641741456,6.53604082,141.93,141.92,0.2]
[1763641741948,114.08882769,141.92,141.91,0.2]
[1763641742252,27.90978769,141.9,141.89,0.2]
[1763641742447,33.76582851,141.9,141.89,0.2]
[1763641742663,41.39304485,141.9,141.89,0.2]
[1763641743464,31.02421716,141.9,141.89,0.2]
[1763641743661,26.84817634,141.9,141.89,0.2]
[1763641743833,23.97700082,141.9,141.89,0.2]
[1763641744356,31.02421716,141.9,141.89,0.2]
[1763641747131,4.17604082,141.91,141.89,0.89]
[1763641747357,1.68,141.9,141.89,0.2]
[1763641748954,12.90325716,141.9,141.89,0.2]
[1763641749833,8.72721634,141.9,141.89,0.2]
[1763641752364,7.04721634,141.9,141.89,0.2]
[1763641752535,8.72721634,141.9,141.89,0.2]
[1763641755561,12.90325716,141.9,141.89,0.2]
[1763641756233,1.68,141.9,141.89,0.89]
[1763641756566,105.98,141.92,141.89,12.11375383]
[1763641756756,1.68,141.92,141.9,4.86604082]
[1763641757063,1.68,141.93,141.91,4.17604082]
[1763641757252,1.68,141.93,141.92,0.69]
[1763641759845,1.68,141.93,141.92,4.86604082]
[1763641761660,1.68,141.93,141.9,4.83604082]
[1763641761862,8.72573017,141.93,141.9,0.66]
[1763641762269,8.72573017,141.93,141.9,7.70720309]
[1763641762455,8.72573017,141.93,141.91,0.66]
[1763641762957,1.68,141.93,141.91,0.66]
[1763641763157,1.68,141.93,141.91,4.83604082]
[1763641763666,1.68,141.93,141.91,11.88260028]
[1763641763850,1.68,141.93,141.92,0.66]
[1763641764670,7.04523346,141.94,141.92,0.66]
[1763641764866,1.68,141.93,141.92,0.66]
[1763641771780,104.3,141.98,141.92,11.88226404]
[1763641771781,19.80096,141.95,141.92,11.88226404]
[1763641771994,1.68,141.95,141.92,11.88226404]
[1763641772278,1.68,141.95,141.93,0.65]
[1763641772650,1.68,141.95,141.93,4.82604082]
[1763641773058,1.68,141.95,141.94,0.65]
[1763641777458,25.16488774,141.97,141.94,3.32274952]
[1763641777660,1.68,141.96,141.95,2.67274952]
[1763641777982,1.68,141.96,141.95,3.32274952]
[1763641779257,8.72428906,141.96,141.94,0.65]
[1763641779476,8.72428906,141.96,141.93,2.67274952]
[1763641779674,8.72428906,141.96,141.95,0.65]
[1763641780375,1.68,141.96,141.95,0.65]
[1763641783787,8.72423781,141.96,141.95,0.65]
[1763641785488,8.72423781,141.96,141.93,2.67274952]
[1763641785696,8.72423781,141.96,141.94,0.65]
[1763641789021,11.39698733,141.96,141.91,7.04647724]
[1763641789312,11.39698733,141.96,141.93,0.65]
[1763641789989,8.72423781,141.96,141.93,0.65]
[1763641790186,11.39698733,141.96,141.93,0.65]
[1763641790613,29.00758186,141.96,141.93,0.65]
[1763641790905,29.58758186,141.96,141.93,0.65]
[1763641791113,29.00758186,141.96,141.93,0.65]
[1763641792791,26.33483234,141.96,141.93,0.65]
[1763641795814,8.72423781,141.96,141.93,0.65]
[1763641798020,1.68,141.96,141.93,10.36845633]
[1763641798514,1.68,141.96,141.94,0.67]
[1763641798710,8.72424353,141.96,141.94,0.67]
[1763641800992,8.72424353,141.96,141.93,0.67]
[1763641801694,11.39699305,141.96,141.91,2.67274952]
[1763641801896,11.97699305,141.96,141.92,0.67]
[1763641802322,9.30424353,141.96,141.92,7.71616519]
[1763641802524,8.72424353,141.96,141.93,0.67]
[1763641804434,8.72424353,141.96,141.93,7.71565497]
[1763641804799,8.72424353,141.96,141.94,0.67]
[1763641804800,1.68,141.96,141.94,0.67]
[1763641805405,8.7243337,141.96,141.94,0.67]
[1763641806239,8.7243337,141.96,141.93,0.67]
[1763641806411,9.3043337,141.96,141.91,2.67274952]
[1763641806619,11.97708322,141.96,141.92,0.67]
[1763641807144,29.58767775,141.96,141.92,0.67]
[1763641807515,18.12096,141.93,141.89,3.54274952]
[1763641807819,1.66,141.92,141.9,0.67]
[1763641808127,1.66,141.91,141.9,0.67]
[1763641808931,21.37370952,141.94,141.9,0.67]
[1763641808932,1.66,141.92,141.9,10.38993606]
[1763641809135,1.66,141.92,141.91,3.34274952]
[1763641810033,1.66,141.92,141.91,0.67]
[1763641811037,1.68,141.94,141.91,10.38946927]
[1763641811414,1.68,141.94,141.92,0.67]
[1763641812524,8.72528718,141.94,141.92,0.67]
[1763641813132,1.68,141.94,141.92,0.67]
[1763641813320,8.72536944,141.94,141.92,0.67]
[1763641813522,8.72536944,141.94,141.9,3.34274952]
[1763641813724,8.72536944,141.94,141.91,0.67]
[1763641814441,8.72536944,141.94,141.91,7.71662374]
[1763641814620,8.72536944,141.94,141.92,0.67]
[1763641815025,1.68,141.94,141.92,0.67]
[1763641815936,111.34490636,141.95,141.92,3.34274952]
[1763641815937,1.68,141.95,141.92,3.34274952]
[1763641816140,1.68,141.95,141.93,0.67]
[1763641816443,1.68,141.95,141.94,2.67274952]
[1763641816742,1.68,141.95,141.93,10.38831322]
[1763641816940,1.68,141.95,141.94,2.67274952]
[1763641817141,1.68,141.95,141.94,3.34274952]
[1763641819328,1.66,141.97,141.94,3.34274952]
[1763641819536,1.66,141.97,141.95,0.67]
[1763641820043,1.66,141.97,141.93,2.67274952]
[1763641820229,2.24,141.97,141.94,0.67]
[1763641820417,3.25274952,141.96,141.91,0.67]
[1763641820618,3.25274952,141.96,141.92,0.67]
[1763641821346,10.2973717,141.96,141.92,0.67]
[1763641822137,2.67274952,141.94,141.9,3.34274952]
[1763641822338,1.66,141.93,141.9,0.67]
[1763641822540,1.66,141.93,141.89,9.92023286]
[1763641822850,1.66,141.93,141.91,0.67]
[1763641823350,8.70581084,141.93,141.91,0.67]
[1763641823726,1.66,141.93,141.91,0.67]
[1763641825037,7.04486025,141.95,141.91,10.38943139]
[1763641825352,1.66,141.94,141.92,2.67274952]
[1763641825558,1.66,141.94,141.92,3.34274952]
[1763641825743,1.66,141.94,141.93,0.67]
[1763641827233,26.82619037,141.94,141.92,2.67274952]
[1763641827553,26.82619037,141.94,141.92,0.67]
[1763641827732,26.82619037,141.94,141.9,9.71983435]
[1763641827934,27.40619037,141.94,141.91,5.28045643]
[1763641828149,27.40619037,141.94,141.9,2.67274952]
[1763641828352,27.40619037,141.94,141.91,5.95030127]
[1763641828558,26.82619037,141.94,141.91,0.67]
[1763641828855,26.82619037,141.94,141.9,2.67274952]
[1763641829034,0.58,141.93,141.91,5.28030127]
[1763641829233,3.25274952,141.93,141.89,0.2]
[1763641829443,27.9145308,141.92,141.9,5.28008603]
[1763641829646,1.66,141.91,141.89,0.2]
[1763641830467,2.24,141.91,141.89,0.2]
[1763641830635,1.66,141.91,141.89,0.2]
[1763641830827,2.24,141.91,141.89,0.2]
[1763641831441,7.04721634,141.9,141.89,0.2]
[1763641832236,8.70694146,141.91,141.89,0.2]
[1763641832441,8.70694146,141.91,141.89,0.89]
[1763641833858,8.70694146,141.91,141.9,0.69]
[1763641834033,1.66,141.91,141.9,0.69]
[1763641834433,26.82767975,141.91,141.9,0.69]
[1763641834639,26.82767975,141.91,141.89,0.2]
[1763641834860,26.82767975,141.91,141.89,0.89]
[1763641837147,18.12096,141.92,141.9,3.36274952]
[1763641837346,1.68,141.92,141.91,0.69]
[1763641837849,18.12096,141.95,141.91,10.40946927]
[1763641838171,1.68,141.94,141.91,10.40946927]
[1763641838355,1.68,141.94,141.92,0.69]
[1763641838544,19.80096,141.94,141.92,0.69]
[1763641839955,7.04572676,141.93,141.9,4.86721192]
[1763641840150,19.80096,141.94,141.91,0.69]
[1763641840640,19.80096,141.94,141.91,4.86721192]
[1763641840843,19.80096,141.94,141.92,4.17721192]
[1763641840844,1.68,141.94,141.92,4.17721192]
[1763641841156,1.68,141.94,141.92,4.86721192]
[1763641841366,1.68,141.94,141.93,0.69]
[1763641845650,1.68,141.94,141.93,4.86721192]
[1763641847169,7.0440797,141.97,141.93,11.91293868]
[1763641847465,1.66,141.96,141.95,4.17721192]
[1763641847864,1.66,141.96,141.95,4.86721192]
[1763641848455,1.66,141.96,141.94,4.17721192]
[1763641848655,8.70428564,141.96,141.94,4.17721192]
[1763641848856,8.70428564,141.96,141.94,4.86721192]
[1763641849650,8.70428564,141.96,141.95,4.17721192]
[1763641849868,8.70428564,141.96,141.95,4.86721192]
[1763641850045,1.66,141.96,141.95,4.86721192]
[1763641851271,1.66,141.96,141.94,4.17721192]
[1763641851272,8.70423781,141.96,141.94,4.17721192]
[1763641851882,8.70423781,141.96,141.94,4.88721192]
[1763641852354,1.66,141.96,141.95,0.71]
[1763641852866,1.66,141.96,141.95,4.88721192]
[1763641854878,1.66,141.97,141.95,4.88721192]
[1763641855053,1.66,141.97,141.96,4.88721192]
[1763641855468,1.66,141.97,141.96,0.71]
[1763641855788,2.24,141.97,141.93,4.17721192]
[1763641855988,0.58,141.96,141.93,4.88721192]
[1763641856285,1.66,141.95,141.93,4.88721192]
[1763641856651,1.66,141.95,141.93,0.71]
[1763641856858,1.66,141.95,141.93,4.88721192]
[1763641857382,9.28481551,141.95,141.92,4.17721192]
[1763641857758,9.28481551,141.95,141.92,4.88721192]
[1763641857983,8.70481551,141.95,141.92,4.88721192]
[1763641858485,1.66,141.95,141.93,4.88721192]
[1763641859691,8.7047692,141.95,141.93,4.88721192]
[1763641860390,1.66,141.95,141.94,4.88721192]
[1763641862686,9.28473406,141.95,141.9,7.75717653]
[1763641862859,9.28473406,141.95,141.92,4.17721192]
[1763641864386,8.70473406,141.95,141.92,4.88721192]
[1763641864574,1.66,141.95,141.94,4.17721192]
[1763641864955,1.66,141.95,141.94,4.88721192]
[1763641866995,8.70473406,141.95,141.94,4.17721192]
[1763641867880,1.66,141.95,141.94,4.17721192]
[1763641870216,25.16766742,141.98,141.94,4.88721192]
[1763641870417,7.62076603,142.03,141.97,4.17721192]
[1763641870573,7.62076603,142.03,141.99,4.17721192]
[1763641870574,1.66,142.02,141.99,4.17721192]
[1763641870765,19.78096,142.02,141.99,4.17721192]
[1763641870972,20.36096,142.02,141.99,4.17721192]
[1763641871682,7.04175762,142.01,141.99,4.17721192]
[1763641872215,1.66,142.0,141.99,4.17721192]
[1763641873102,1.66,142.0,141.99,4.88721192]
[1763641873301,4.17721192,142.04,141.99,11.9299614]
[1763641873608,7.03970812,142.06,142.03,4.17721192]
[1763641873813,1.66,142.05,142.03,4.17721192]
[1763641875096,8.69998862,142.05,142.03,4.17721192]
[1763641875278,8.69998862,142.05,142.03,4.88721192]
[1763641875606,1.66,142.05,142.04,4.88721192]
[1763641877846,0.2,142.08,142.04,11.92735601]
[1763641877995,1.86,142.08,142.07,4.17721192]
[1763641878375,0.2,142.08,142.07,4.88721192]
[1763641879102,0.2,142.08,142.07,11.92599561]
[1763641879789,0.2,142.08,142.07,4.88721192]
[1763641880001,0.2,142.08,142.07,11.92599561]
[1763641880616,0.2,142.08,142.03,21.77859257]
[1763641880807,0.2,142.08,142.06,4.17721192]
[1763641881106,8.89859198,142.08,142.06,4.17721192]
[1763641881505,8.89859198,142.08,142.04,0.66]
[1763641881730,0.58,142.07,142.05,4.17721192]
[1763641882306,26.4943127,142.08,142.05,4.17721192]
[1763641882634,27.0743127,142.08,142.05,4.17721192]
[1763641883139,27.0743127,142.08,142.06,4.17721192]
[1763641883435,1.86,142.08,142.06,4.17721192]
[1763641884331,8.89831651,142.08,142.06,4.17721192]
[1763641885626,8.89831651,142.08,142.05,4.83721192]